bitfinex-derivatives/quotes_SOLF0:USTF0_20241208
["timestamp","ask_amount","ask_price","bid_price","bid_amount"]
[1733621894923,2.0916,238.8,238.74,2.092]
[1733621896018,4.0514,238.82,238.69,10.10907676]
[1733621896415,2.0914,238.82,238.69,10.10907676]
[1733621896615,2.0914,238.82,238.7,1.3833]
[1733621897219,2.0914,238.82,238.77,2.0918]
[1733621897417,2.0914,238.82,238.7,1.3833]
[1733621897418,11.45727676,238.84,238.7,1.3833]
[1733621897616,2.0913,238.83,238.73,1.96]
[1733621897821,1.96,238.85,238.73,1.96]
[1733621898418,88.05576787,238.87,238.75,10.10907676]
[1733621898617,88.05576787,238.87,238.76,1.2811]
[1733621899021,2.091,238.86,238.81,2.0914]
[1733621899617,2.0912,238.85,238.79,2.0916]
[1733621900220,2.0912,238.85,238.76,1.2811]
[1733621900221,2.0913,238.83,238.77,2.0917]
[1733621900423,1.96,238.84,238.77,2.0917]
[1733621901727,2.0914,238.82,238.77,2.0917]
[1733621902324,4.0513,238.84,238.78,2.0917]
[1733621902537,4.0513,238.84,238.76,1.2811]
[1733621902538,1.96,238.84,238.76,1.2811]
[1733621902738,1.96,238.84,238.79,2.0916]
[1733621903232,1.96,238.84,238.76,1.2811]
[1733621904336,4.0512,238.84,238.79,2.0916]
[1733621906336,1.96,238.84,238.76,1.2811]
[1733621907730,1.2542,238.91,238.76,1.2811]
[1733621907731,1.96,238.89,238.76,1.2811]
[1733621908130,4.0508,238.89,238.84,2.0912]
[1733621908531,6.46116131,238.88,238.84,2.0912]
[1733621908932,2.0908,238.89,238.85,2.0911]
[1733621908933,8.55196131,238.89,238.85,2.0911]
[1733621909135,8.55196131,238.89,238.82,6.46116131]
[1733621910436,4.0307,238.9,238.82,6.46116131]
[1733621910635,88.02834057,238.94,238.84,6.46116131]
[1733621910636,1.94,238.93,238.84,6.46116131]
[1733621910838,8.40116131,238.93,238.84,6.46116131]
[1733621912138,8.40116131,238.93,238.89,2.0907]
[1733621912335,10.49156131,238.93,238.89,2.0907]
[1733621912538,10.49156131,238.93,238.84,6.46116131]
[1733621912739,88.02834057,238.94,238.84,6.46116131]
[1733621912936,6.46116131,238.93,238.84,6.46116131]
[1733621913739,6.46116131,238.93,238.86,6.46116131]
[1733621914140,6.46116131,238.93,238.9,2.0906]
[1733621915136,88.02834057,238.94,238.86,6.46116131]
[1733621915740,6.46116131,238.95,238.86,6.46116131]
[1733621915936,6.46116131,238.95,238.88,6.46116131]
[1733621916337,6.46116131,238.95,238.92,2.0904]
[1733621917238,1.94,238.97,238.88,6.46116131]
[1733621917239,4.0301,238.97,238.88,6.46116131]
[1733621917543,6.46116131,238.99,238.9,6.46116131]
[1733621917939,2.09,238.98,238.93,2.0903]
[1733621918545,2.09,238.98,238.94,2.0903]
[1733621921745,6.46116131,238.99,238.92,2.0904]
[1733621921746,2.0901,238.97,238.92,2.0904]
[1733621921945,2.0901,238.97,238.92,8.55156131]
[1733621922549,2.0901,238.97,238.92,2.0904]
[1733621923050,2.0901,238.97,238.9,6.46116131]
[1733621923051,2.0901,238.97,238.93,2.0904]
[1733621924042,2.0902,238.96,238.93,2.0904]
[1733621924447,2.0902,238.96,238.9,6.46116131]
[1733621924647,2.0902,238.96,238.92,2.0905]
[1733621926947,2.0901,238.97,238.93,2.0904]
[1733621927351,6.46116131,238.99,238.93,2.0904]
[1733621927549,6.46116131,238.97,238.91,2.0906]
[1733621928749,6.46116131,238.95,238.88,6.46116131]
[1733621929653,2.0904,238.93,238.89,2.0908]
[1733621931855,6.46116131,238.95,238.89,2.0908]
[1733621931856,2.0903,238.94,238.89,2.0908]
[1733621932056,6.46116131,238.97,238.9,8.55176131]
[1733621932548,2.0903,238.95,238.9,8.55176131]
[1733621935154,2.0903,238.95,238.91,2.0906]
[1733621935451,1.306,239.07,238.87,1.94]
[1733621935657,2.0898,239.01,238.96,2.0902]
[1733621936158,6.46116131,239.03,238.94,6.46116131]
[1733621937460,2.0896,239.02,238.97,2.09]
[1733621937863,2.0896,239.02,238.94,6.46116131]
[1733621938558,6.46116131,239.03,238.98,2.0899]
[1733621938559,8.55076131,239.03,238.98,2.0899]
[1733621938758,8.55076131,239.03,238.94,6.46116131]
[1733621938958,8.55076131,239.03,238.96,6.46116131]
[1733621939664,8.55076131,239.03,238.98,2.09]
[1733621939858,2.0897,239.02,238.98,2.09]
[1733621941164,2.0897,239.01,238.97,2.0901]
[1733621942264,2.0896,239.02,238.97,2.0901]
[1733621944462,1.306,239.07,238.92,1.94]
[1733621944760,3.206,239.07,239.0,6.46116131]
[1733621944965,1.306,239.07,239.02,2.0896]
[1733621945159,9.62216131,239.08,239.02,2.0896]
[1733621945361,2.0893,239.07,239.02,2.0896]
[1733621946361,288.1016427,239.19,239.02,6.46116131]
[1733621946562,2.089,239.09,239.05,2.0894]
[1733621947765,6.46116131,239.1,239.04,2.0894]
[1733621949766,2.0892,239.08,239.04,2.0894]
[1733621949968,6.46116131,239.1,239.04,2.0894]
[1733621950166,2.0891,239.09,239.04,2.0894]
[1733621950468,6.46116131,239.1,239.04,2.0894]
[1733621950667,2.0892,239.07,239.04,2.0894]
[1733621950862,2.0892,239.07,239.02,8.36116131]
[1733621951062,2.0892,239.07,239.02,10.45076131]
[1733621951666,2.0892,239.07,239.03,2.0895]
[1733621953566,2.0892,239.07,239.04,2.0895]
[1733621954369,2.0892,239.07,239.04,8.55066131]
[1733621954567,6.46116131,239.11,239.04,8.55066131]
[1733621954568,2.0891,239.09,239.04,8.55066131]
[1733621954970,6.46116131,239.11,239.04,8.55066131]
[1733621955169,2.0892,239.07,239.02,6.46116131]
[1733621955364,6.46116131,239.11,239.03,2.0895]
[1733621956266,2.0892,239.07,239.03,2.0895]
[1733621956567,2.0892,239.07,239.04,6.46116131]
[1733621958371,2.0891,239.09,239.05,2.0893]
[1733621959267,2.0891,239.09,239.01,1.9]
[1733621959268,6.46116131,239.09,239.01,8.36116131]
[1733621959477,6.46116131,239.11,239.03,6.46116131]
[1733621960768,2.0892,239.07,239.03,8.55066131]
[1733621962076,2.0892,239.07,239.03,6.46116131]
[1733621962373,2.0892,239.07,239.04,2.0894]
[1733621962784,2.0891,239.08,239.04,2.0894]
[1733621963277,2.0891,239.08,239.05,2.0894]
[1733621963479,2.0889,239.1,239.03,6.46116131]
[1733621963680,2.0889,239.1,239.01,1.9]
[1733621963681,2.0889,239.1,239.05,6.46116131]
[1733621964277,2.0889,239.1,239.07,2.0892]
[1733621964574,2.0889,239.1,239.07,8.55036131]
[1733621966183,2.0889,239.11,239.07,8.55036131]
[1733621967883,2.0888,239.13,239.09,2.089]
[1733621969088,2.0888,239.13,239.08,2.0891]
[1733621969289,2.0888,239.13,239.07,6.46116131]
[1733621970185,2.0888,239.13,239.09,2.089]
[1733621970391,2.0889,239.11,239.07,6.46116131]
[1733621970891,2.0889,239.12,239.08,2.0891]
[1733621979201,2.0889,239.12,239.09,6.46116131]
[1733621985002,2.0888,239.14,239.09,8.55026131]
[1733621985203,8.36116131,239.16,239.09,8.55026131]
[1733621986707,2.0889,239.13,239.09,8.55026131]
[1733621988408,2.0889,239.13,239.1,2.0891]
[1733621996415,6.46116131,239.16,239.09,8.55036131]
[1733621996915,2.0889,239.13,239.09,8.55036131]
[1733621999113,2.0889,239.13,239.09,2.0892]
[1733621999418,6.46116131,239.11,239.03,2.0897]
[1733621999623,6.46116131,239.09,239.03,2.0897]
[1733621999913,2.0894,239.06,239.03,2.0897]
[1733622004020,6.46116131,239.09,239.03,2.0897]
[1733622004021,2.0894,239.07,239.03,2.0897]
[1733622004217,6.46116131,239.09,239.01,1.88]
[1733622004416,6.46116131,239.09,239.02,2.0898]
[1733622004616,2.0894,239.07,239.02,8.55096131]
[1733622005417,2.0894,239.07,239.03,2.0897]
[1733622006121,89.8194169,239.16,239.06,6.46116131]
[1733622006322,89.8194169,239.16,239.1,6.46116131]
[1733622007218,2.0889,239.13,239.1,8.55016131]
[1733622009819,2.0889,239.13,239.08,6.46116131]
[1733622010017,2.0889,239.13,239.09,2.0892]
[1733622010224,2.089,239.11,239.05,6.46116131]
[1733622011825,2.089,239.11,239.07,2.0893]
[1733622013229,2.0892,239.09,239.06,2.0894]
[1733622013433,8.34116131,239.11,239.02,6.46116131]
[1733622013633,8.34116131,239.11,238.97,56.79355245]
[1733622013634,6.46116131,239.09,239.01,6.46116131]
[1733622013934,6.46116131,239.09,238.99,1.88]
[1733622014129,6.46116131,239.09,239.0,6.46116131]
[1733622014531,2.0896,239.05,239.0,2.0899]
[1733622014734,6.46116131,239.07,238.98,7.75206131]
[1733622015132,6.46116131,239.05,238.98,7.75206131]
[1733622015729,6.46116131,239.03,238.97,56.79355245]
[1733622016329,6.46116131,239.01,238.91,1.88]
[1733622016534,8.34116131,239.01,238.92,6.46116131]
[1733622017634,2.0902,238.98,238.93,2.0905]
[1733622018536,2.0902,238.97,238.93,2.0905]
[1733622019032,2.0902,238.97,238.9,3.2541]
[1733622019236,2.0903,238.96,238.9,9.71526131]
[1733622019739,2.0903,238.96,238.91,2.0907]
[1733622021938,2.0903,238.96,238.9,9.71526131]
[1733622021939,6.46116131,238.99,238.9,9.71526131]
[1733622022135,16.7171,239.17,238.94,6.46116131]
[1733622022330,16.7171,239.17,238.9,3.2541]
[1733622022331,1.88,239.16,238.96,6.46116131]
[1733622022530,6.46116131,239.05,238.96,6.46116131]
[1733622022735,8.34116131,239.05,238.96,6.46116131]
[1733622023639,8.34116131,239.05,238.98,2.0901]
[1733622023640,2.0897,239.03,238.98,2.0901]
[1733622024137,8.34116131,239.05,238.96,6.46116131]
[1733622024336,8.34116131,239.05,238.92,6.46116131]
[1733622024337,6.46116131,239.01,238.92,6.46116131]
[1733622024544,16.7171,239.17,238.9,7.83526131]
[1733622024545,6.46116131,238.99,238.9,7.83526131]
[1733622024732,6.46116131,238.99,238.9,6.46116131]
[1733622025137,1.88,239.0,238.89,1.2682]
[1733622025138,6.46116131,238.97,238.89,1.2682]
[1733622025339,6.46116131,238.97,238.88,6.46116131]
[1733622026045,6.46116131,238.95,238.88,6.46116131]
[1733622027036,6.46116131,238.93,238.85,6.46116131]
[1733622027839,6.46116131,238.91,238.82,1.2923]
[1733622028039,6.46116131,238.91,238.83,6.46116131]
[1733622028248,2.0909,238.89,238.84,2.0914]
[1733622028444,2.0909,238.89,238.83,6.46116131]
[1733622029745,6.46116131,238.91,238.85,2.0913]
[1733622029955,2.0908,238.9,238.85,2.0913]
[1733622030548,2.0908,238.9,238.85,8.55246131]
[1733622033352,8.55196131,238.91,238.86,2.0911]
[1733622033951,8.55196131,238.91,238.82,1.2923]
[1733622033952,2.0903,238.97,238.89,6.46116131]
[1733622034252,1.86,238.96,238.91,6.46116131]
[1733622034455,1.86,238.97,238.91,6.46116131]
[1733622035351,2.0904,238.95,238.9,2.0907]
[1733622035750,6.46116131,238.94,238.9,2.0907]
[1733622036649,2.0906,238.93,238.88,2.091]
[1733622037252,2.0906,238.93,238.86,6.46116131]
[1733622038152,1.3895,239.03,238.9,6.46116131]
[1733622038356,6.46116131,238.98,238.9,6.46116131]
[1733622038558,1.86,238.97,238.9,6.46116131]
[1733622038754,1.86,238.97,238.92,2.0906]
[1733622038755,3.9503,238.97,238.92,2.0906]
[1733622039154,1.86,238.97,238.9,6.46116131]
[1733622039556,1.86,238.97,238.94,2.0905]
[1733622041853,2.0898,239.02,238.98,2.0901]
[1733622042261,1.86,239.04,238.96,6.46116131]
[1733622042864,1.86,239.04,238.98,6.46116131]
[1733622043266,6.46116131,239.06,238.98,6.46116131]
[1733622044664,2.0895,239.05,239.01,2.0899]
[1733622044859,2.0895,239.05,238.98,6.46116131]
[1733622045764,3.9494,239.07,239.0,6.46116131]
[1733622045965,2.0894,239.07,239.0,6.46116131]
[1733622046257,10.41046131,239.09,239.02,6.46116131]
[1733622047858,3.9493,239.09,239.04,2.0896]
[1733622048062,8.32116131,239.12,239.04,6.46116131]
[1733622048968,6.46116131,239.08,239.01,6.46116131]
[1733622049765,2.0894,239.07,239.03,2.0896]
[1733622050663,2.0895,239.05,239.0,2.09]
[1733622051760,2.0895,239.05,238.99,2.6741]
[1733622051761,1.86,239.07,239.02,6.46116131]
[1733622051964,1.86,239.11,239.02,6.46116131]
[1733622052169,1.86,239.12,239.04,6.46116131]
[1733622052359,2.089,239.12,239.07,2.0893]
[1733622052963,2.089,239.11,239.06,2.0894]
[1733622057663,3.9489,239.13,239.08,8.55036131]
[1733622057962,3.9489,239.13,239.08,6.46116131]
[1733622058765,1.2562,239.23,239.12,6.46116131]
[1733622058960,1.86,239.19,239.12,6.46116131]
[1733622059268,94.39564669,239.18,239.12,6.46116131]
[1733622059465,6.46116131,239.16,239.08,1.2867]
[1733622059664,6.46116131,239.16,239.08,7.74786131]
[1733622060066,8.54996131,239.14,239.09,2.0892]
[1733622060268,6.46116131,239.14,239.08,1.2867]
[1733622060568,6.46116131,239.12,239.04,1.86]
[1733622060770,6.46116131,239.12,239.05,6.46116131]
[1733622061267,2.0892,239.1,239.05,8.55056131]
[1733622061465,6.46116131,239.12,239.04,1.86]
[1733622061662,6.46116131,239.1,239.04,1.86]
[1733622061867,2.0893,239.08,239.03,2.0896]
[1733622062061,6.46116131,239.1,239.02,6.46116131]
[1733622062265,6.46116131,239.08,239.01,1.2867]
[1733622062670,10.08063838,239.11,239.01,1.2867]
[1733622063660,2.0895,239.05,239.01,1.2867]
[1733622064466,11.94063838,239.08,238.95,10.08063838]
[1733622064667,2.0897,239.03,238.95,11.94063838]
[1733622065467,11.94063838,239.08,238.99,2.09]
[1733622065770,2.0896,239.05,238.99,2.09]
[1733622066869,1.86,239.08,238.99,2.09]
[1733622067069,2.0896,239.04,238.99,2.09]
[1733622070277,1.86,239.08,239.0,2.0899]
[1733622070473,2.0895,239.05,239.0,2.0899]
[1733622071371,10.08063838,239.14,238.98,10.08063838]
[1733622071571,2.0893,239.09,238.98,10.08063838]
[1733622072779,2.0893,239.09,239.04,2.0896]
[1733622073974,2.0891,239.11,239.04,2.0896]
[1733622074174,1.86,239.13,239.04,2.0896]
[1733622074773,2.0893,239.09,239.04,2.0895]
[1733622075180,2.089,239.11,239.07,2.0893]
[1733622075381,10.08063838,239.14,239.07,2.0893]
[1733622075685,1.86,239.13,239.07,2.0893]
[1733622075889,2.0891,239.1,239.06,2.0894]
[1733622076987,2.0891,239.1,239.07,2.0893]
[1733622077188,99.30990726,239.17,239.04,10.08063838]
[1733622077386,1.86,239.14,239.04,10.08063838]
[1733622078287,1.86,239.14,239.08,2.0892]
[1733622078288,2.0889,239.12,239.08,2.0892]
[1733622082589,8.30812086,239.14,239.08,2.0892]
[1733622082889,2.089,239.11,239.08,2.0892]
[1733622085495,2.0886,239.16,239.1,6.44812086]
[1733622085691,1.3717,239.25,239.14,6.44812086]
[1733622085887,6.44812086,239.24,239.16,6.44812086]
[1733622086189,6.44812086,239.24,239.17,2.0885]
[1733622086396,6.44812086,239.23,239.17,2.0885]
[1733622087596,2.0882,239.21,239.17,2.0885]
[1733622090901,6.44812086,239.21,239.13,1.2865]
[1733622091801,2.0885,239.17,239.13,1.2865]
[1733622091995,1.86,239.24,239.13,1.2865]
[1733622091996,6.44812086,239.19,239.13,1.2865]
[1733622092192,6.44812086,239.19,239.1,6.44812086]
[1733622092397,2.0886,239.16,239.11,2.089]
[1733622092598,8.30812086,239.19,239.1,6.44812086]
[1733622093595,2.0887,239.15,239.1,8.53722086]
[1733622096595,6.44812086,239.17,239.12,6.44812086]
[1733622096596,2.0885,239.17,239.12,6.44812086]
[1733622096796,1.86,239.19,239.12,6.44812086]
[1733622097595,1.86,239.19,239.12,8.53702086]
[1733622097596,2.0886,239.16,239.12,8.53702086]
[1733622106213,6.44812086,239.23,239.14,6.44812086]
[1733622106515,1.86,239.22,239.16,6.44812086]
[1733622106716,2.0883,239.19,239.16,6.44812086]
[1733622106914,74.52269051,240.79,239.16,6.44812086]
[1733622107114,74.52269051,240.79,239.13,1.86]
[1733622107115,6.44812086,239.26,239.18,6.44812086]
[1733622107420,2.088,239.23,239.19,2.0883]
[1733622107710,2.088,239.23,239.14,1.3782]
[1733622107711,1.86,239.25,239.2,6.44812086]
[1733622107908,1.86,239.28,239.2,6.44812086]
[1733622108808,6.44812086,239.29,239.22,6.44812086]
[1733622109013,2.5585,239.33,239.22,6.44812086]
[1733622109014,1.86,239.28,239.22,6.44812086]
[1733622109408,2.0875,239.29,239.23,2.0879]
[1733622109612,1.86,239.3,239.23,2.0879]
[1733622110417,2.0873,239.31,239.26,2.0877]
[1733622110619,1.86,239.31,239.26,2.0877]
[1733622111011,6.44812086,239.33,239.26,8.53582086]
[1733622111212,2.0871,239.33,239.28,8.53562086]
[1733622111615,2.0871,239.33,239.28,5.256576]
[1733622114618,2.0876,239.27,239.24,1.3692]
[1733622114822,6.44812086,239.3,239.24,1.3692]
[1733622115119,6.44812086,239.3,239.23,6.44812086]
[1733622115522,6.44812086,239.3,239.21,6.44812086]
[1733622115821,6.44812086,239.28,239.21,6.44812086]
[1733622116722,6.44812086,239.26,239.19,8.30812086]
[1733622117624,2.0879,239.24,239.19,8.30812086]
[1733622118721,6.44812086,239.26,239.17,6.44812086]
[1733622119126,6.44812086,239.24,239.15,1.2823]
[1733622119527,6.44812086,239.24,239.16,6.44812086]
[1733622120621,2.0882,239.21,239.16,6.44812086]
[1733622121118,6.44812086,239.22,239.15,1.2823]
[1733622121319,8.30812086,239.22,239.15,1.2823]
[1733622122026,2.0882,239.2,239.15,1.2823]
[1733622123732,8.30812086,239.22,239.16,6.44812086]
[1733622123733,2.0881,239.21,239.16,6.44812086]
[1733622128026,1.86,239.22,239.16,6.44812086]
[1733622128227,1.258,239.3,239.18,6.44812086]
[1733622128228,6.44812086,239.26,239.18,6.44812086]
[1733622128431,8.30812086,239.26,239.18,6.44812086]
[1733622129033,2.0879,239.24,239.18,6.44812086]
[1733622134234,8.30812086,239.26,239.18,6.44812086]
[1733622134431,2.088,239.23,239.15,3.1423]
[1733622134635,2.088,239.23,239.16,6.44812086]
[1733622137139,2.0879,239.25,239.2,6.44812086]
[1733622137437,6.44812086,239.31,239.22,6.44812086]
[1733622137646,6.44812086,239.31,239.15,3.1423]
[1733622137647,1.86,239.3,239.24,6.44812086]
[1733622138342,2.0874,239.3,239.24,6.44812086]
[1733622141840,6.44812086,239.33,239.28,6.44812086]
[1733622141841,3.9471,239.33,239.28,6.44812086]
[1733622143141,1.86,239.33,239.28,6.44812086]
[1733622143341,2.0869,239.35,239.3,6.44812086]
[1733622143955,2.0871,239.33,239.28,6.44812086]
[1733622144249,6.44812086,239.34,239.28,6.44812086]
[1733622145648,2.0872,239.32,239.28,6.44812086]
[1733622146743,2.0871,239.33,239.28,6.44812086]
[1733622147545,2.087,239.34,239.28,6.44812086]
[1733622147942,2.087,239.34,239.3,6.44812086]
[1733622148151,89.73599804,239.36,239.3,6.44812086]
[1733622148453,3.9469,239.36,239.3,6.44812086]
[1733622151052,2.0869,239.35,239.3,6.44812086]
[1733622153545,2.0869,239.35,239.26,4.0063]
[1733622153546,2.087,239.34,239.26,4.0063]
[1733622153757,2.087,239.34,239.27,6.44812086]
[1733622154353,6.44812086,239.35,239.27,6.44812086]
[1733622154548,2.0869,239.36,239.29,6.44812086]
[1733622154747,6.44812086,239.37,239.29,6.44812086]
[1733622155148,2.0869,239.35,239.29,6.44812086]
[1733622155351,1.86,239.38,239.31,6.44812086]
[1733622155754,2.0868,239.36,239.31,6.44812086]
[1733622163166,2.0868,239.38,239.31,6.44812086]
[1733622163363,1.86,239.41,239.35,6.44812086]
[1733622164060,2.0866,239.4,239.35,6.44812086]
[1733622164768,8.30812086,239.41,239.35,6.44812086]
[1733622164964,2.0867,239.39,239.35,6.44812086]
[1733622165366,8.30812086,239.41,239.3,1.86]
[1733622165672,6.44812086,239.39,239.31,6.44812086]
[1733622166767,2.0869,239.36,239.31,6.44812086]
[1733622167868,2.087,239.35,239.31,6.44812086]
[1733622168266,6.44812086,239.39,239.31,6.44812086]
[1733622168472,2.0869,239.37,239.31,6.44812086]
[1733622169175,2.0869,239.37,239.33,6.44812086]
[1733622173476,2.0869,239.36,239.32,6.44812086]
[1733622182376,2.0868,239.37,239.32,2.30061285]
[1733622182579,1.86,239.41,239.34,6.44812086]
[1733622182775,1.86,239.41,239.29,1.86]
[1733622183078,1.86,239.41,239.35,6.44812086]
[1733622183277,1.86,239.44,239.37,6.44812086]
[1733622184779,2.0864,239.42,239.37,6.44812086]
[1733622186578,2.0864,239.42,239.37,4.00678529]
[1733622188380,2.0862,239.44,239.39,6.44812086]
[1733622189687,2.0863,239.43,239.39,6.44812086]
[1733622193889,2.0863,239.43,239.35,2.6719]
[1733622194086,2.0863,239.43,239.39,6.44812086]
[1733622196690,2.0863,239.43,239.35,4.0289]
[1733622196888,635.41746279,239.58,239.39,6.44812086]
[1733622197087,2.0859,239.47,239.44,6.44812086]
[1733622197289,1.86,239.51,239.44,6.44812086]
[1733622197485,6.44812086,239.52,239.44,6.44812086]
[1733622197689,2.0858,239.49,239.44,6.44812086]
[1733622197994,8.30812086,239.52,239.44,6.44812086]
[1733622198787,1.3336,239.6,239.39,1.86]
[1733622198788,1.3336,239.6,239.48,6.44812086]
[1733622199089,2.0854,239.53,239.48,6.44812086]
[1733622201297,3.9453,239.55,239.48,6.44812086]
[1733622201592,3.9453,239.55,239.5,4.03420445]
[1733622201796,2.0853,239.54,239.5,4.03420445]
[1733622202896,2.0853,239.54,239.5,1.50866355]
[1733622203097,2.0852,239.56,239.5,1.50866355]
[1733622203689,2.0852,239.56,239.5,0.94981433]
[1733622204792,2.0852,239.56,239.46,1.3138]
[1733622204793,2.0852,239.56,239.52,6.44812086]
[1733622205595,2.0852,239.56,239.52,4.0657137]
[1733622205897,6.44812086,239.59,239.52,4.0657137]
[1733622206096,2.0849,239.59,239.54,6.44812086]
[1733622206491,1.86,239.6,239.56,6.44812086]
[1733622206694,1.86,239.6,239.49,1.86]
[1733622206898,2.0847,239.61,239.56,6.44812086]
[1733622207293,2.0847,239.61,239.58,6.44812086]
[1733622207598,2.0847,239.61,239.58,4.11698525]
[1733622211205,2.0847,239.61,239.56,1.3124]
[1733622211401,2.0848,239.6,239.56,1.3124]
[1733622211805,2.0848,239.6,239.56,7.76052086]
[1733622213004,2.0847,239.61,239.56,7.76052086]
[1733622214505,1.86,239.67,239.58,6.44812086]
[1733622214701,6.44812086,239.65,239.58,6.44812086]
[1733622215607,2.0847,239.62,239.58,6.44812086]
[1733622217702,2.0847,239.62,239.58,4.14162354]
[1733622218805,6.44812086,239.65,239.58,4.14162354]
[1733622219004,2.0847,239.61,239.58,4.14162354]
[1733622219207,6.44812086,239.65,239.58,4.14162354]
[1733622219703,2.0847,239.61,239.58,4.14162354]
[1733622220305,288.82611945,239.77,239.6,6.44812086]
[1733622220306,1.86,239.76,239.6,6.44812086]
[1733622220510,1.86,239.76,239.7,6.44812086]
[1733622220711,8.30812086,239.77,239.71,6.44812086]
[1733622220911,8.30812086,239.77,239.64,1.86]
[1733622221106,2.0835,239.76,239.71,6.44812086]
[1733622221306,8.30812086,239.77,239.71,6.44812086]
[1733622221709,1.86,239.77,239.71,6.44812086]
[1733622221906,6.44812086,239.76,239.69,6.44812086]
[1733622222616,2.0837,239.73,239.69,4.21449201]
[1733622222912,2.0837,239.73,239.67,8.53222086]
[1733622223107,2.084,239.69,239.65,1.2791]
[1733622225610,6.44812086,239.72,239.65,1.2791]
[1733622225804,2.0841,239.68,239.65,1.2791]
[1733622226106,2.0841,239.68,239.64,6.44812086]
[1733622226705,1.342,239.82,239.66,6.44812086]
[1733622226909,6.44812086,239.8,239.73,6.44812086]
[1733622227408,8.30812086,239.8,239.73,6.44812086]
[1733622227607,2.0832,239.78,239.73,6.44812086]
[1733622227910,8.30812086,239.8,239.73,6.44812086]
[1733622228711,2.0835,239.75,239.73,6.44812086]
[1733622229615,2.0834,239.76,239.73,6.44812086]
[1733622230107,2.0834,239.76,239.72,6.44812086]
[1733622230808,2.0834,239.76,239.68,1.86]
[1733622230809,2.0835,239.75,239.7,2.0839]
[1733622231007,2.0835,239.75,239.7,8.53202086]
[1733622231207,6.44812086,239.78,239.7,8.53202086]
[1733622231606,1.86,239.8,239.64,3.3625]
[1733622231607,2.0841,239.68,239.64,3.3625]
[1733622232211,6.44812086,239.71,239.62,3.9445]
[1733622232212,2.0842,239.67,239.62,3.9445]
[1733622232413,6.44812086,239.71,239.63,6.44812086]
[1733622232611,6.44812086,239.71,239.62,1.86]
[1733622232818,6.44812086,239.69,239.62,1.86]
[1733622233016,6.44812086,239.69,239.61,6.44812086]
[1733622234012,8.30812086,239.69,239.61,6.44812086]
[1733622234818,2.0845,239.64,239.61,6.44812086]
[1733622236821,2.0845,239.64,239.6,6.44812086]
[1733622237522,2.0845,239.63,239.6,6.44812086]
[1733622237914,6.44812086,239.65,239.58,6.44812086]
[1733622240516,1.86,239.69,239.58,6.44812086]
[1733622240712,2.0847,239.62,239.58,6.44812086]
[1733622241424,2.0847,239.62,239.58,8.53302086]
[1733622241616,2.0845,239.63,239.6,6.44812086]
[1733622241818,2.0845,239.63,239.62,6.44812086]
[1733622242217,2.0844,239.65,239.62,6.44812086]
[1733622242816,8.30812086,239.69,239.62,6.44812086]
[1733622242817,2.0845,239.64,239.62,6.44812086]
[1733622243317,2.0845,239.64,239.6,8.53292086]
[1733622245515,2.0846,239.62,239.6,6.44812086]
[1733622246625,2.0845,239.63,239.6,6.44812086]
[1733622248222,6.44812086,239.68,239.6,6.44812086]
[1733622248420,2.0846,239.62,239.6,6.44812086]
[1733622255732,2.0846,239.62,239.58,2.0849]
[1733622256032,2.0846,239.62,239.59,6.44812086]
[1733622258127,6.44812086,239.65,239.55,1.86]
[1733622258326,2.0848,239.6,239.57,6.44812086]
[1733622258927,2.085,239.58,239.54,3.9453]
[1733622259130,2.085,239.58,239.56,6.44812086]
[1733622263026,2.085,239.58,239.55,2.0852]
[1733622263422,2.085,239.58,239.56,6.44812086]
[1733622264631,6.44812086,239.63,239.56,6.44812086]
[1733622264830,2.0849,239.59,239.56,6.44812086]
[1733622265226,2.0849,239.59,239.55,2.0852]
[1733622265535,2.0849,239.59,239.56,6.44812086]
[1733622266027,2.0849,239.59,239.56,8.53322086]
[1733622266233,2.0847,239.62,239.58,6.44812086]
[1733622266435,2.0847,239.62,239.6,6.44812086]
[1733622266835,2.0847,239.62,239.58,8.53302086]
[1733622268133,1.86,239.64,239.58,2.0849]
[1733622268338,2.0847,239.61,239.58,8.53302086]